Workbook

Sheet 一般公共预算收入预算表
A1: 2023年一般公共预算收入预算表
C2: 单位：万元
A3: 项 目 | B3: 2022年决算数 | C3: 2023年预算数
A5: 一、税收收入 | B5: 373,100 | C5: 429,600
A6: 增值税
A7: 企业所得税
A8: 个人所得税
A9: 资源税
A10: 城市维护建设税
A11: 房产税
A12: 印花税
A13: 城镇土地使用税
A14: 土地增值税
A15: 车船税
A16: 耕地占用税
A17: 契税
A18: 环境保护税
A19: 其他税收收入
A20: 二、非税收入 | B20: 31,900 | C20: 20,000
A21: 专项收入
A22: 行政事业性收费收入
A23: 罚没收入
A24: 国有资源（资产）有偿使用收入
A25: 捐赠收入
A26: 政府住房基金收入
A27: 其他收入
A28: 收入合计 | B28: =B20+B5 -> 405,000 | C28: =C20+C5 -> 449,600

Sheet 一般公共预算支出预算表
A1: 2023年一般公共预算支出预算表
G2: 单位：万元
A3: 项 目 | B3: 2021决算数 | E3: 2021年决算数 | F3: 2022年决算数 | G3: 2023年预算数
A4: 一、一般公共服务支出 | B4: 区 | C4: 镇 | D4: 合计
A5: 一、一般公共服务支出 | B5: 9024 | C5: 9213 | D5: =B5+C5 -> 18237 | E5: 18237 | F5: 17,400 | G5: 17,600
A6: 二、国防支出 | D6: =B6+C6 -> 0
A7: 三、公共安全支出 | D7: 0 | F7: 7,500 | G7: 7,500
A8: 四、教育支出 | C8: 78347 | D8: 78347 | E8: 78347 | F8: 80,712 | G8: 80,780
A9: 五、科学技术支出 | B9: 44528 | D9: 44528 | E9: 44528 | F9: 8,000 | G9: 8,000
A10: 六、文化旅游体育与传媒支出 | C10: 3260 | D10: 3260 | E10: 3260 | F10: 1,800 | G10: 1,800
A11: 七、社会保障和就业支出 | C11: 27274 | D11: 27274 | E11: 27274 | F11: 20,600 | G11: 20,600
A12: 八、卫生健康支出 | C12: 17483 | D12: 17483 | E12: 17483 | F12: 20,406 | G12: 17,400
A13: 九、节能环保支出 | C13: 324 | D13: 324 | E13: 324 | F13: 1,000 | G13: 1,000
A14: 十、城乡社区支出 | B14: 30437 | C14: 17711 | D14: 48148 | E14: 48148 | F14: 10,702 | G14: 10,600
A15: 十一、农林水支出 | B15: 8 | C15: 15743 | D15: 15751 | E15: 15751 | F15: 15,755 | G15: 15,760
A16: 十二、交通运输支出 | C16: 20 | D16: 20 | F16: 40 | G16: 40
A17: 十三、资源勘探工业信息等支出 | B17: 612 | D17: 612 | E17: 612 | F17: 612 | G17: 600
A18: 十四、商业服务业等支出 | B18: 932 | D18: 932 | E18: 932 | F18: 932 | G18: 940
A19: 十五、金融支出 | B19: 914 | D19: 914 | E19: 914 | F19: 500 | G19: 500
A20: 十六、援助其他地区支出 | B20: 500 | D20: 500 | E20: 500 | F20: 600 | G20: 600
A21: 十七、自然资源海洋气象等支出 | D21: 0
A22: 十八、住房保障支出 | C22: 5024 | D22: 5024 | E22: 5024 | F22: 6,300 | G22: 6,920
A23: 十九、粮油物资储备支出 | B23: 15 | D23: 15
A24: 二十、灾害防治及应急管理支出 | D24: 0
A25: 二十一、预备费 | D25: 0
A26: 二十二、其他支出 | D26: 0
A27: 二十三、债务付息支出 | B27: 3417 | D27: 3417 | F27: 3,182 | G27: 2,700
A28: 二十四、债务发行费用支出 | B28: 12 | D28: 12
A29: 本级支出合计 | B29: =SUM(B5:B28) -> 90,399 | C29: =SUM(C5:C28) -> 174,399 | D29: 264798 | F29: =SUM(F5:F28) -> 196,041 | G29: =SUM(G5:G28) -> 193,340
A30: 地方政府一般债务还本支出 | B30: 28400 | D30: 28400 | F30: 12,000 | G30: 25,400
A31: 年终结余
A32: 支出总计 | B32: =B29+B30 -> 118,799 | C32: =C29+C30 -> 174,399 | D32: =D29+D30 -> 293,198 | F32: =F29+F30 -> 208,041 | G32: =G29+G30 -> 218,740

Sheet 政府性基金收入预算表
A1: 2023年政府性基金收入预算表
C2: 单位：万元
A3: 项 目 | B3: 2022年决算数 | C3: 2023年预算数
A4: 一、农网还贷资金收入
A5: 二、海南省高等级公路车辆通行附加费收入
A6: 三、港口建设费收入
A7: 四、国家电影事业发展专项资金收入
A8: 五、国有土地收益基金收入
A9: 六、农业土地开发资金收入
A10: 七、国有土地使用权出让收入 | B10: 153,000 | C10: 150,000
A11: 土地出让价款收入
A12: 补缴的土地价款
A13: 划拨土地收入
A14: 缴纳新增建设用地土地有偿使用费
A15: 其他土地出让收入
A16: 八、大中型水库库区基金收入
A17: 九、彩票公益金收入
A18: 福利彩票公益金收入
A19: 体育彩票公益金收入
A20: 十、城市基础设施配套费收入
A21: 十一、小型水库移民扶助基金收入
A22: 十二、国家重大水利工程建设基金收入
A23: 十三、车辆通行费
A24: 十四、污水处理费收入
A25: 十五、彩票发行机构和彩票销售机构的业务费用
A26: 福利彩票销售机构的业务费用
A27: 体育彩票销售机构的业务费用
A28: 本级收入合计 | B28: =B6+B8+B9+B10+B17+B20+B24+B25 -> 153,000 | C28: =C6+C8+C9+C10+C17+C20+C24+C25 -> 150,000

Sheet 政府性基金支出预算表
A1: 2023年政府性基金支出预算表
C2: 单位：万元
A3: 项 目 | B3: 2022年决算数 | C3: 2023年预算数
A4: 一、国家电影事业发展专项资金安排的支出
A5: 二、国有土地使用权出让收入安排的支出 | B5: 80,000 | C5: 90,200
A6: 三、国有土地收益基金安排的支出 | B6: =153000-80000 -> 73,000 | C6: =150000-90200 -> 59,800
A7: 四、农业土地开发资金安排的支出
A8: 五、城市基础设施配套费安排的支出
A9: 六、污水处理费安排的支出
A10: 七、棚户区改造专项债券收入安排的支出
A11: 八、国有土地使用权出让收入对应专项债务收入安排的支出
A12: 九、港口建设费安排的支出
A13: 十、彩票发行销售机构业务费安排的支出
A14: 十一、彩票公益金安排的支出
A15: 十二、地方政府专项债务付息支出
A16: 十三、地方政府专项债务发行费用支出
A17: 本级支出合计 | B17: =SUM(B4:B16) -> 153,000 | C17: 150,000
A18: 地方政府专项债务还本支出
A19: 转移性支出
A20: 调出资金
A21: 年终结余
A22: 支出总计 | B22: =B18+B17 -> 153,000 | C22: =C18+C17 -> 150,000
